bitfinex-derivatives/quotes_SOLF0:USTF0_20250730
["timestamp","ask_amount","ask_price","bid_price","bid_amount"]
[1753865187327,3.11,181.38,181.32,2.71338581]
[1753865187727,3.11,181.34,181.32,11.23848581]
[1753865189139,3.11,181.34,181.33,5.515]
[1753865189531,3.11,181.34,181.33,8.525]
[1753865192032,3.11,181.34,181.32,8.22858581]
[1753865192343,3.11,181.34,181.33,3.01]
[1753865192840,3.11,181.34,181.33,8.525]
[1753865193144,3.11,181.34,181.33,3.01]
[1753865193338,3.11,181.34,181.32,2.71338581]
[1753865193543,3.11,181.34,181.3,5.72338581]
[1753865194337,5.5152,181.33,181.3,11.23908581]
[1753865194544,3.11,181.32,181.3,5.72338581]
[1753865194738,3.11,181.33,181.3,2.71338581]
[1753865194937,5.5146,181.35,181.31,5.5154]
[1753865195143,3.11,181.32,181.31,5.5154]
[1753865195334,3.11,181.32,181.31,8.5254]
[1753865196945,3.11,181.32,181.31,3.01]
[1753865197540,3.11,181.32,181.31,8.5256]
[1753865199346,3.11,181.37,181.3,11.23918581]
[1753865199548,3.11,181.33,181.3,11.23918581]
[1753865199747,3.11,181.33,181.31,8.5255]
[1753865200049,3.11,181.32,181.31,5.5155]
[1753865200548,3.11,181.32,181.31,8.5255]
[1753865203442,2.71338581,181.4,181.34,3.01]
[1753865203647,16.37346486,181.39,181.34,3.01]
[1753865203841,4.05040121,181.38,181.34,3.01]
[1753865204045,5.514,181.37,181.34,3.01]
[1753865204244,3.11,181.36,181.34,3.01]
[1753865204650,3.11,181.35,181.34,3.01]
[1753865205044,2.71338581,181.38,181.3,5.72338581]
[1753865205245,3.11,181.36,181.3,11.23918581]
[1753865205449,3.11,181.36,181.3,2.71338581]
[1753865205849,5.515,181.33,181.3,2.71338581]
[1753865206041,3.11,181.32,181.29,3.01]
[1753865207148,3.11,181.32,181.29,8.5262]
[1753865207751,3.11,181.32,181.3,8.5259]
[1753865208753,3.11,181.33,181.31,3.01]
[1753865209240,8.6253,181.33,181.31,3.01]
[1753865209450,3.11,181.32,181.31,3.01]
[1753865209649,3.11,181.32,181.29,5.5161]
[1753865209845,3.11,181.32,181.3,3.01]
[1753865210452,3.11,181.32,181.3,5.72338581]
[1753865210852,5.5153,181.33,181.3,5.72338581]
[1753865211053,3.11,181.31,181.3,11.23928581]
[1753865212656,3.11,181.31,181.3,8.22928581]
[1753865212855,3.11,181.31,181.3,11.26928581]
[1753865218366,3.11,181.31,181.3,5.75338581]
[1753865218564,3.11,181.31,181.3,3.04]
[1753865218870,3.25,181.33,181.27,2.71338581]
[1753865219368,3.25,181.29,181.27,2.71338581]
[1753865219569,3.25,181.29,181.27,8.23018581]
[1753865220064,3.25,181.3,181.28,3.04]
[1753865220260,5.5157,181.31,181.28,5.5163]
[1753865220464,3.25,181.3,181.29,3.04]
[1753865220866,3.25,181.35,181.29,5.75338581]
[1753865221066,3.25,181.31,181.29,2.71338581]
[1753865221267,3.25,181.31,181.29,5.75338581]
[1753865221568,3.25,181.3,181.29,11.26928581]
[1753865222565,3.25,181.37,181.3,3.04]
[1753865222765,3.25,181.35,181.3,3.04]
[1753865223071,3.25,181.33,181.3,8.5558]
[1753865223370,3.25,181.33,181.31,3.04]
[1753865224073,3.25,181.34,181.3,3.04]
[1753865225274,3.25,181.34,181.31,8.5554]
[1753865227075,3.25,181.33,181.31,5.5154]
[1753865227276,3.25,181.33,181.28,3.04]
[1753865227573,3.25,181.33,181.3,2.71338581]
[1753865227768,3.25,181.32,181.3,2.71338581]
[1753865227970,3.25,181.32,181.29,5.75338581]
[1753865228372,3.25,181.32,181.29,11.26938581]
[1753865228768,3.25,181.32,181.3,3.04]
[1753865229075,3.25,181.32,181.29,8.22938581]
[1753865229274,3.25,181.31,181.29,11.26938581]
[1753865230178,3.25,181.32,181.29,5.516]
[1753865230473,3.25,181.32,181.3,3.04]
[1753865231280,8.7653,181.32,181.3,3.04]
[1753865231471,3.25,181.31,181.29,11.26938581]
[1753865232267,3.25,181.3,181.28,3.04]
[1753865232467,3.25,181.3,181.27,2.71338581]
[1753865232667,3.25,181.3,181.28,3.04]
[1753865232864,3.25,181.29,181.28,8.5563]
[1753865233068,5.5155,181.32,181.28,3.04]
[1753865233271,3.25,181.3,181.29,5.75338581]
[1753865233467,3.25,181.3,181.29,11.26958581]
[1753865233672,3.25,181.32,181.3,3.04]
[1753865233877,3.25,181.32,181.29,5.75338581]
[1753865234076,3.25,181.32,181.29,8.22948581]
[1753865234674,3.25,181.32,181.29,11.26948581]
[1753865235277,5.5154,181.32,181.29,11.26948581]
[1753865235473,3.25,181.31,181.29,11.26948581]
[1753865235975,3.25,181.3,181.29,5.75338581]
[1753865237172,3.25,181.3,181.29,11.26948581]
[1753865242782,3.25,181.3,181.29,10.29121487]
[1753865243783,5.5152,181.33,181.3,5.5158]
[1753865243981,5.5152,181.33,181.32,1.73511487]
[1753865244180,9.58345656,181.33,181.32,1.73511487]
[1753865244480,12.64345656,181.33,181.32,1.73511487]
[1753865244877,12.64345656,181.33,181.3,123.5958]
[1753865245075,5.5152,181.33,181.32,1.73511487]
[1753865245280,9.58338022,181.33,181.32,1.73511487]
[1753865245582,12.64338022,181.33,181.32,1.73511487]
[1753865248671,5.5156,181.31,181.3,118.08]
[1753865248978,3.06,181.31,181.3,119.81511487]
[1753865250281,8.5756,181.31,181.3,119.81511487]
[1753865250776,3.06,181.31,181.3,119.81511487]
[1753865250982,3.06,181.31,181.3,122.95511487]
[1753865251677,3.06,181.31,181.3,119.81511487]
[1753865252680,3.06,181.31,181.3,122.95511487]
[1753865253080,5.5151,181.33,181.3,119.81511487]
[1753865253283,3.06,181.32,181.31,3.14]
[1753865255182,3.06,181.32,181.31,8.6556]
[1753865255775,3.06,181.36,181.32,3.14]
[1753865255980,3.06,181.36,181.35,1.73511487]
[1753865256173,3.06,181.36,181.35,122.91511487]
[1753865256378,3.06,181.37,181.36,3.14]
[1753865256578,3.06,181.37,181.36,4.87511487]
[1753865257774,3.06,181.37,181.36,1.73511487]
[1753865257979,3.06,181.37,181.35,118.04]
[1753865258176,1.73511487,181.36,181.32,1.73511487]
[1753865258381,3.06,181.35,181.32,1.73511487]
[1753865258780,5.5148,181.34,181.31,118.02]
[1753865258979,3.06,181.33,181.31,118.02]
[1753865259876,3.06,181.34,181.32,3.14]
[1753865260287,8.5748,181.34,181.31,126.6756]
[1753865260586,3.06,181.33,181.31,118.02]
[1753865261475,3.06,181.33,181.31,126.6755]
[1753865261675,3.06,181.32,181.31,126.6755]
[1753865263381,5.514,181.37,181.31,120.73131941]
[1753865263684,4.64539328,181.42,181.34,3.14]
[1753865263990,3.06,181.36,181.35,129.38561941]
[1753865264182,3.06,181.38,181.35,120.73131941]
[1753865264482,3.06,181.37,181.36,3.14]
[1753865265588,3.06,181.37,181.36,8.6541]
[1753865266086,3.06,181.39,181.36,8.6541]
[1753865266292,3.06,181.38,181.37,3.14]
[1753865267791,3.06,181.39,181.37,3.14]
[1753865268693,3.06,181.39,181.37,8.6537]
[1753865268893,3.06,181.38,181.37,8.6537]
[1753865269096,7.35671269,181.45,181.38,3.14]
[1753865269097,3.06,181.44,181.38,3.14]
[1753865269393,3.06,181.42,181.39,3.14]
[1753865269787,3.06,181.45,181.41,2.71131941]
[1753865269992,4.05919081,181.44,181.41,5.85131941]
[1753865270193,5.5113,181.46,181.41,8.22361941]
[1753865270395,3.06,181.42,181.41,8.22361941]
[1753865270889,3.06,181.46,181.42,3.14]
[1753865271092,3.49651453,181.48,181.45,2.71131941]
[1753865271293,3.49651453,181.48,181.45,5.86131941]
[1753865271687,2.98,181.47,181.43,123.4919]
[1753865271893,2.98,181.47,181.44,5.86131941]
[1753865272192,2.98,181.47,181.44,2.71131941]
[1753865272588,5.5111,181.46,181.44,2.71131941]
[1753865272788,2.98,181.45,181.44,2.71131941]
[1753865273791,2.98,181.45,181.44,5.86131941]
[1753865274188,2.98,181.45,181.44,2.71131941]
[1753865274789,2.98,181.45,181.43,117.98]
[1753865274994,2.98,181.45,181.44,5.86131941]
[1753865275190,5.5108,181.47,181.44,5.86131941]
[1753865275391,2.98,181.46,181.45,3.15]
[1753865276394,2.98,181.46,181.44,5.86131941]
[1753865278193,2.98,181.46,181.44,2.71131941]
[1753865278594,8.4911,181.46,181.43,117.98]
[1753865278790,2.98,181.46,181.43,2.71131941]
[1753865279395,2.98,181.45,181.43,2.71131941]
[1753865280400,5.5114,181.45,181.43,2.71131941]
[1753865280696,2.98,181.44,181.43,2.71131941]
[1753865280899,2.98,181.44,181.43,5.86131941]
[1753865281300,3.49651453,181.48,181.43,2.71131941]
[1753865281498,2.98,181.47,181.43,5.86131941]
[1753865281701,8.4909,181.47,181.44,3.15]
[1753865281897,5.5109,181.47,181.44,3.15]
[1753865282099,2.98,181.45,181.44,3.15]
[1753865282295,9.00691453,181.48,181.44,8.6614]
[1753865282598,9.00691453,181.48,181.44,5.5114]
[1753865282798,2.98,181.46,181.44,5.5114]
[1753865282994,3.49651453,181.48,181.45,5.5113]
[1753865283199,2.98,181.47,181.46,3.15]
[1753865284900,2.98,181.47,181.45,3.15]
[1753865287403,9.00691453,181.48,181.45,8.6613]
[1753865287603,2.98,181.46,181.45,8.6613]
[1753865288303,2.98,181.46,181.45,3.15]
[1753865288503,2.98,181.46,181.44,5.5115]
[1753865288799,2.98,181.46,181.43,5.86131941]
[1753865289098,8.491,181.46,181.43,11.37301941]
[1753865289303,2.98,181.45,181.43,11.37301941]
[1753865289805,2.98,181.46,181.43,2.71131941]
[1753865290004,2.98,181.46,181.43,5.86131941]
[1753865290304,2.98,181.46,181.44,3.15]
[1753865290507,2.98,181.46,181.44,8.6615]
[1753865290701,2.98,181.45,181.44,5.5115]
[1753865291106,2.98,181.44,181.43,8.22311941]
[1753865291404,2.98,181.44,181.43,11.37311941]
[1753865292899,2.98,181.44,181.43,2.71131941]
[1753865293106,2.98,181.44,181.42,117.88]
[1753865293407,2.98,181.44,181.42,121.03]
[1753865293706,5.5114,181.45,181.42,121.03]
[1753865294002,2.98,181.43,181.42,121.03]
[1753865294203,2.98,181.43,181.42,126.5422]
[1753865295102,2.98,181.44,181.43,5.5119]
[1753865295307,5.5108,181.47,181.43,2.71131941]
[1753865295807,2.98,181.45,181.43,2.71131941]
[1753865296407,2.98,181.45,181.44,3.15]
[1753865298604,2.98,181.45,181.44,8.6616]
[1753865300812,2.98,181.47,181.45,5.5111]
[1753865301104,2.98,181.46,181.45,5.5111]
[1753865301409,2.98,181.46,181.45,8.6211]
[1753865304211,2.98,181.46,181.45,3.11]
[1753865304411,2.98,181.46,181.44,5.5115]
[1753865304709,2.98,181.46,181.44,8.6215]
[1753865305111,3.17,181.45,181.44,8.6215]
[1753865307011,3.17,181.45,181.44,126.4615]
[1753865309115,3.49651453,181.48,181.45,3.11]
[1753865309311,3.17,181.46,181.45,3.11]
[1753865309710,3.17,181.46,181.45,8.6213]
[1753865310811,3.49651453,181.48,181.47,5.5107]
[1753865311017,6.66651453,181.48,181.47,5.82131941]
[1753865311316,3.17,181.47,181.46,5.82131941]
[1753865311516,3.17,181.47,181.46,11.33231941]
[1753865312014,3.17,181.47,181.46,2.71131941]
[1753865312217,3.17,181.47,181.44,117.84]
[1753865312518,5.5118,181.44,181.41,117.82]
[1753865312708,3.17,181.43,181.41,117.82]
[1753865313208,3.17,181.43,181.41,123.3325]
[1753865314013,3.17,181.43,181.41,126.4425]
[1753865315010,5.5118,181.44,181.41,126.4425]
[1753865315312,3.17,181.47,181.42,2.71131941]
[1753865315519,3.17,181.45,181.43,3.11]
[1753865315814,3.17,181.47,181.43,3.11]
[1753865316019,3.17,181.45,181.44,8.6216]
[1753865316319,7.18416335,181.45,181.44,8.6216]
[1753865316508,3.17,181.45,181.44,8.6216]
[1753865316714,3.17,181.46,181.45,3.11]
[1753865317618,7.18375609,181.46,181.45,3.11]
[1753865317813,7.18375609,181.46,181.44,5.5116]
[1753865317814,3.17,181.46,181.44,5.5116]
[1753865318021,3.17,181.46,181.44,8.6216]
[1753865318319,3.17,181.46,181.44,11.33291941]
[1753865318819,8.681,181.46,181.44,5.82131941]
[1753865319020,3.17,181.45,181.44,5.82131941]
[1753865319220,3.17,181.45,181.44,2.71131941]
[1753865322617,8.6813,181.45,181.44,2.71131941]
[1753865323519,3.17,181.43,181.4,2.71131941]
[1753865323723,3.17,181.43,181.41,117.8]
[1753865323928,3.17,181.43,181.41,120.91]
[1753865324623,3.17,181.42,181.41,120.91]
[1753865325831,3.17,181.47,181.41,117.8]
[1753865326021,3.17,181.45,181.42,2.71131941]
[1753865326225,3.17,181.45,181.41,117.8]
[1753865326626,3.17,181.45,181.41,120.91]
[1753865327031,3.17,181.42,181.41,120.91]
[1753865327221,3.17,181.44,181.41,120.91]
[1753865327421,8.6818,181.44,181.42,5.82131941]
[1753865327625,3.49651453,181.48,181.42,5.82131941]
[1753865327626,3.17,181.43,181.42,5.82131941]
[1753865327826,3.17,181.47,181.43,3.11]
[1753865328031,5.5118,181.44,181.42,5.82131941]
[1753865328233,3.17,181.43,181.42,5.82131941]
[1753865328735,3.17,181.43,181.42,3.11]
[1753865328926,3.17,181.43,181.42,5.82131941]
[1753865329429,8.6819,181.43,181.42,2.71131941]
[1753865329631,3.17,181.43,181.42,2.71131941]
[1753865329927,3.17,181.43,181.42,5.82131941]
[1753865333529,8.6819,181.43,181.42,5.82131941]
[1753865333930,3.17,181.43,181.42,5.82131941]
[1753865335434,3.17,181.43,181.42,2.71131941]
[1753865336032,3.03,181.45,181.42,11.19351941]
[1753865336335,3.03,181.44,181.42,8.22351941]
[1753865336734,3.03,181.44,181.43,2.97]
[1753865340836,3.03,181.44,181.42,2.71131941]
[1753865341142,3.03,181.44,181.42,5.68131941]
[1753865341639,3.03,181.44,181.42,11.19351941]
[1753865342842,5.5111,181.46,181.43,8.4819]
[1753865343041,5.5111,181.46,181.44,117.76]
[1753865343443,3.03,181.45,181.44,117.76]
[1753865343843,3.03,181.45,181.44,126.2416]
[1753865344345,3.03,181.47,181.45,2.97]
[1753865344539,3.03,181.47,181.44,120.47131941]
[1753865344540,3.03,181.47,181.46,5.5109]
[1753865344841,3.03,181.47,181.46,11.19221941]
[1753865347045,3.03,181.47,181.46,5.68131941]
[1753865347648,3.03,181.47,181.46,123.42131941]
[1753865348249,3.49651453,181.48,181.46,120.45131941]
[1753865348445,8.5407,181.47,181.46,117.74]
[1753865348846,3.03,181.46,181.44,2.71131941]
[1753865349044,3.03,181.46,181.45,117.74]
[1753865349851,8.541,181.46,181.45,117.74]
[1753865350947,3.03,181.46,181.45,117.74]
[1753865353348,3.03,181.46,181.44,5.68131941]
[1753865353349,3.03,181.47,181.41,5.68131941]
[1753865353552,4.0099984,181.46,181.42,117.72]
[1753865353752,5.5118,181.44,181.42,117.72]
[1753865353947,3.03,181.43,181.42,117.72]
[1753865354143,3.03,181.43,181.42,120.69]
[1753865354651,3.03,181.43,181.42,126.2022]
[1753865354953,3.03,181.47,181.43,2.97]
[1753865355450,3.49651453,181.48,181.46,2.97]
[1753865355649,4.00990073,181.47,181.46,2.97]
[1753865356152,7.03990073,181.47,181.46,2.97]
[1753865356648,3.49651453,181.48,181.46,2.97]
[1753865356846,6.52651453,181.48,181.46,2.97]
[1753865357248,6.52651453,181.48,181.47,2.97]
[1753865357444,10.53671264,181.48,181.47,2.97]
[1753865357651,3.03,181.47,181.45,120.43131941]
[1753865357845,3.03,181.47,181.45,117.72]
[1753865358554,5.5107,181.47,181.45,117.72]
[1753865358855,3.03,181.46,181.45,120.69]
[1753865361056,3.03,181.46,181.45,126.2013]
[1753865363852,3.23,181.47,181.45,125.94261941]
[1753865364057,3.23,181.47,181.46,8.771]
[1753865364758,3.23,181.47,181.46,3.26]
[1753865366160,3.23,181.47,181.46,8.771]
[1753865366363,3.23,181.47,181.46,3.26]
[1753865367258,3.23,181.47,181.45,120.43131941]
[1753865368262,3.49651453,181.48,181.45,117.72]
[1753865368452,3.23,181.46,181.45,117.72]
[1753865368657,3.23,181.46,181.45,120.98]
[1753865369261,12.23721453,181.48,181.45,120.98]
[1753865369464,3.23,181.47,181.46,3.26]
[1753865369964,6.72651453,181.48,181.46,3.26]
[1753865370358,3.49651453,181.48,181.46,3.26]
[1753865370659,3.49651453,181.48,181.47,11.48201941]
[1753865371064,6.72651453,181.48,181.47,11.48201941]
[1753865372661,3.49651453,181.48,181.47,11.48201941]
[1753865373567,6.72651453,181.48,181.47,8.22201941]
[1753865373964,6.72651453,181.48,181.47,11.48201941]
[1753865375155,3.49651453,181.48,181.47,11.48201941]
[1753865376166,6.72651453,181.48,181.47,11.48201941]
[1753865379563,6.72651453,181.48,181.47,5.97131941]
[1753865379768,6.72651453,181.48,181.47,2.71131941]
[1753865380871,6.72651453,181.48,181.47,5.97131941]
[1753865381672,6.72651453,181.48,181.47,2.71131941]
[1753865382167,3.49651453,181.48,181.47,11.48201941]
[1753865382564,6.72651453,181.48,181.39,9.13042323]
[1753865382871,3.23,181.46,181.42,5.97131941]
[1753865383267,3.23,181.46,181.42,2.71131941]
[1753865383468,3.23,181.46,181.43,3.26]
[1753865383666,3.23,181.45,181.42,2.71131941]
[1753865383969,3.23,181.45,181.43,117.64]
[1753865384273,3.23,181.45,181.43,120.9]
[1753865385172,3.49651453,181.48,181.44,3.26]
[1753865385481,3.23,181.47,181.45,3.26]
[1753865385665,3.23,181.47,181.44,2.71131941]
[1753865385871,3.23,181.47,181.44,5.97131941]
[1753865386565,9.00701453,181.48,181.46,2.71131941]
[1753865386566,3.49651453,181.48,181.46,2.71131941]
[1753865386874,3.49651453,181.48,181.47,120.9]
[1753865387069,3.49651453,181.48,181.47,126.4107]
[1753865387580,6.72651453,181.48,181.47,126.4107]
[1753865387775,3.49651453,181.48,181.47,126.4107]
[1753865393779,3.49651453,181.48,181.47,123.1507]
[1753865394080,6.48651453,181.48,181.47,125.86201941]
[1753865394276,6.48651453,181.48,181.47,128.95201941]
[1753865395581,3.49651453,181.48,181.47,128.95201941]
[1753865396582,6.48651453,181.48,181.47,128.95201941]
[1753865400382,3.49651453,181.48,181.47,128.95201941]
[1753865401986,2.99,181.5,181.49,8.6001]
[1753865402185,2.99,181.5,181.49,128.91141941]
[1753865404187,2.99,181.5,181.49,125.82141941]
[1753865405784,5.5071,181.59,181.5,3.09]
[1753865406092,7.35390853,181.63,181.56,5.80131941]
[1753865406093,2.99,181.57,181.56,5.80131941]
[1753865406290,2.99,181.57,181.56,120.29131941]
[1753865407786,2.99,181.55,181.52,2.71131941]
[1753865407992,2.99,181.55,181.53,117.58]
[1753865408483,2.99,181.55,181.5,2.71131941]
[1753865408484,2.71131941,181.59,181.5,2.71131941]
[1753865408790,2.99,181.57,181.51,117.56]
[1753865409191,4.02784595,181.56,181.52,117.56]
[1753865409390,2.99,181.55,181.52,117.56]
[1753865410292,8.4989,181.53,181.52,117.56]
[1753865411686,2.99,181.53,181.47,3.09]
[1753865411895,2.99,181.52,181.48,117.56]
[1753865412097,2.99,181.51,181.48,117.56]
[1753865412785,5.5101,181.49,181.48,117.56]
[1753865412994,8.5001,181.49,181.48,117.56]
[1753865414291,2.99,181.49,181.43,3.09]
[1753865414498,2.99,181.49,181.44,117.56]
[1753865415895,5.5112,181.46,181.44,117.56]
[1753865416193,2.99,181.45,181.44,120.65]
[1753865416892,8.5013,181.45,181.44,117.56]
[1753865417391,2.71131941,181.47,181.43,117.56]
[1753865417594,2.99,181.46,181.43,117.56]
[1753865417795,2.99,181.46,181.43,120.65]
[1753865418589,2.71131941,181.48,181.43,117.56]
[1753865418897,2.99,181.51,181.45,2.71131941]
[1753865419194,2.99,181.49,181.46,117.56]
[1753865419393,5.5107,181.47,181.41,373.17131941]
[1753865419591,2.99,181.46,181.44,3.09]
[1753865419794,5.5107,181.47,181.45,117.56]
[1753865419996,5.511,181.46,181.42,5.5121]
[1753865420199,2.99,181.47,181.43,117.56]
[1753865420393,2.99,181.47,181.43,120.65]
[1753865420787,2.99,181.44,181.43,120.65]
[1753865421798,3.05,181.47,181.44,3.0]
[1753865422001,3.05,181.46,181.44,3.0]
[1753865422196,3.05,181.45,181.44,3.0]
[1753865422798,3.05,181.45,181.43,117.56]
[1753865423402,3.05,181.45,181.43,3.0]
[1753865423603,2.71131941,181.48,181.44,117.56]
[1753865424101,8.561,181.46,181.45,3.0]
[1753865424404,3.05,181.45,181.44,117.56]
[1753865424796,3.05,181.45,181.44,120.56]
[1753865424993,3.05,181.45,181.44,117.56]
[1753865425504,3.05,181.46,181.44,117.56]
[1753865425708,3.05,181.45,181.44,117.56]
[1753865426100,8.5613,181.45,181.44,117.56]
[1753865427599,5.5122,181.42,181.37,97.8164351]
[1753865427806,4.64258912,181.51,181.38,117.56]
[1753865427807,3.05,181.43,181.38,117.56]
[1753865428005,3.05,181.43,181.39,3.0]
[1753865429504,3.05,181.41,181.38,120.56]
[1753865430103,5.5128,181.4,181.38,120.56]
[1753865430309,3.05,181.39,181.38,120.56]
[1753865430802,3.05,181.39,181.33,370.48]
[1753865431107,3.05,181.37,181.33,373.48]
[1753865431305,5.5143,181.35,181.34,117.58]
[1753865431503,8.5643,181.35,181.34,117.58]
[1753865431808,3.05,181.35,181.34,117.58]
[1753865432104,3.05,181.35,181.29,3.0]
[1753865432499,3.05,181.32,181.3,117.6]
[1753865432704,3.05,181.32,181.31,3.0]
[1753865433307,5.76131941,181.34,181.26,2.71131941]
[1753865433507,3.05,181.33,181.28,3.0]
[1753865433708,3.05,181.33,181.29,3.0]
[1753865434404,3.05,181.32,181.27,117.6]
[1753865434803,3.05,181.32,181.28,3.0]
[1753865435113,3.05,181.34,181.28,3.0]
[1753865435407,3.05,181.32,181.27,117.62]
[1753865435609,3.05,181.32,181.28,3.0]
[1753865435813,3.05,181.32,181.25,3.0]
[1753865436007,2.71131941,181.31,181.27,117.62]
[1753865436203,3.05,181.3,181.27,117.62]
[1753865437309,3.05,181.3,181.27,120.62]
[1753865437810,2.71131941,181.33,181.28,3.0]
[1753865438006,3.05,181.31,181.28,3.0]
[1753865438208,3.05,181.32,181.27,120.62]
[1753865438909,3.05,181.3,181.27,126.1567]
[1753865439410,3.05,181.29,181.28,3.0]
[1753865439916,5.5153,181.32,181.28,5.5164]
[1753865440108,3.05,181.31,181.3,3.0]
[1753865440308,3.05,181.31,181.29,3.0]
[1753865440508,3.05,181.31,181.27,117.64]
[1753865440709,3.05,181.31,181.3,3.0]
[1753865441614,3.05,181.33,181.28,5.71131941]
[1753865441811,3.05,181.32,181.29,3.0]
[1753865442212,3.05,181.32,181.3,3.0]
[1753865442414,3.05,181.32,181.31,3.0]
[1753865443412,2.71131941,181.35,181.27,120.35131941]
[1753865443606,3.05,181.36,181.3,3.0]
[1753865443807,2.71131941,181.35,181.28,3.0]
[1753865444010,2.71131941,181.35,181.27,120.35131941]
[1753865444011,5.515,181.33,181.3,3.0]
[1753865444209,3.05,181.32,181.28,3.0]
[1753865444411,3.05,181.34,181.28,3.0]
[1753865444605,2.71131941,181.39,181.3,3.0]
[1753865444814,5.76131941,181.39,181.32,3.0]
[1753865445015,3.05,181.38,181.32,3.0]
[1753865445216,3.05,181.38,181.35,3.0]
[1753865445811,4.64258912,181.48,181.36,3.0]
[1753865445812,3.05,181.37,181.36,3.0]
[1753865446012,3.05,181.42,181.37,3.0]
[1753865446211,2.71131941,181.46,181.38,3.0]
[1753865446521,3.05,181.44,181.38,3.0]
[1753865447020,3.05,181.41,181.4,3.0]
[1753865447618,3.05,181.43,181.4,3.0]
[1753865448120,3.05,181.43,181.41,3.0]
[1753865448320,3.05,181.43,181.42,3.0]
[1753865448521,3.05,181.43,181.39,8.22441941]
[1753865448721,5.5117,181.44,181.4,3.0]
[1753865448915,3.05,181.41,181.4,3.0]
[1753865449118,5.5117,181.44,181.41,3.0]
[1753865449319,3.05,181.42,181.41,3.0]
[1753865450118,3.05,181.44,181.41,2.71131941]
[1753865450325,3.05,181.43,181.42,3.0]
[1753865452623,3.13,181.5,181.42,3.0]
[1753865452823,12.31607504,181.49,181.43,8.22311941]
[1753865453128,3.13,181.47,181.44,3.1]
[1753865453324,3.13,181.46,181.44,3.1]
[1753865453523,3.13,181.46,181.44,5.5115]
[1753865453724,3.13,181.46,181.45,3.1]
[1753865453924,5.5107,181.48,181.46,3.1]
[1753865453925,3.13,181.47,181.46,3.1]
[1753865454828,5.5101,181.49,181.46,3.1]
[1753865455028,3.13,181.48,181.47,3.1]
[1753865456628,5.51,181.5,181.45,8.22261941]
[1753865456830,3.13,181.48,181.46,3.1]
[1753865457022,3.13,181.48,181.45,8.22261941]
[1753865457221,3.13,181.48,181.47,3.1]
[1753865459538,3.13,181.47,181.46,3.1]
[1753865460433,8.6407,181.47,181.46,3.1]
[1753865460638,3.13,181.51,181.43,2.71131941]
[1753865460838,3.13,181.47,181.41,5.81131941]
[1753865461136,5.5113,181.45,181.41,5.81131941]
[1753865461438,3.13,181.44,181.41,5.81131941]
[1753865461641,3.13,181.44,181.42,3.1]
[1753865462235,3.13,181.43,181.42,3.1]
[1753865462441,3.13,181.42,181.41,5.81131941]
[1753865463330,3.13,181.42,181.39,5.81131941]
[1753865463537,3.13,181.42,181.38,117.58]
[1753865463929,3.13,181.42,181.39,3.1]